[Event "European Online Club-ch-A 2021"]
[Site "Online"]
[Date "2021.03.27"]
[Round "2.14"]
[White "Istratescu, Andrei"]
[Black "Hrbek, Stepan"]
[Result "1-0"]
[ECO "D36"]
[WhiteElo "2553"]
[BlackElo "2230"]
[Annotator "ChessBase"]
[PlyCount "103"]
[EventDate "2021.03.27"]
[EventType "team-tourn"]
[EventCountry "NET"]
[SourceTitle "playchess.com"]
[Source "ChessBase"]
[SourceQuality "1"]
[TimeControl "900+5"]

1. d4 {[%emt 0:00:00]} d5 {[%emt 0:00:05]} 2. c4 {[%emt 0:00:03]} e6 {[%emt 0:00:03]} 3. Nc3 {[%emt 0:00:02]} Nf6 {[%emt 0:00:01]} 4. cxd5 {[%emt 0:00:15]} exd5 {[%emt 0:00:02]} 5. Bg5 {[%emt 0:00:01]} Be7 {[%emt 0:00:02]} 6. e3 {[%emt 0:00:04]} c6 {[%emt 0:00:01]} 7. Bd3 {[%emt 0:00:02]} Nbd7 {[%emt 0:00:02]} 8. Qc2 {[%emt 0:00:06]} h6 {[%emt 0:00:01]} 9. Bh4 {[%emt 0:00:04]} Nh5 {[%emt 0:00:02]} 10. Bxe7 {[%emt 0:00:02]} Qxe7 {[%emt 0:00:01]} 11. Nge2 {[%emt 0:00:02]} Nb6 {[%emt 0:00:03]} 12. h3 {[%emt 0:00:19]} Bd7 {[%emt 0:00:10]} 13. O-O-O {[%emt 0:00:12]} O-O-O {[%emt 0:00:05]} 14. Kb1 {[%emt 0:00:02]} Kb8 {[%emt 0:00:07]} 15. Nc1 {[%emt 0:00:04]} g6 {[%emt 0:01:41]} 16. Nb3 {[%emt 0:00:06]} Ng7 {[%emt 0:01:19]} 17. Rhe1 {[%emt 0:00:13]} Bf5 {[%emt 0:00:16]} 18. f3 {[%emt 0:00:02]} Bxd3 {[%emt 0:00:21]} 19. Qxd3 {[%emt 0:00:03]} f5 {[%emt 0:00:33]} 20. e4 {[%emt 0:00:27]} dxe4 {[%emt 0:01:15]} 21. fxe4 {[%emt 0:00:03]} Qb4 {[%emt 0:01:42]} 22. exf5 {[%emt 0:00:36]} Nxf5 {[%emt 0:00:25]} 23. g4 {[%emt 0:00:03]} Ne7 {[%emt 0:00:05]} 24. Nc5 {[%emt 0:00:39]} Nc4 {[%emt 0:01:28]} 25. b3 {[%emt 0:00:09]} Na3+ {[%emt 0:01:10]} 26. Kb2 {[%emt 0:00:10]} Nc8 {[%emt 0:00:20]} 27. Qg3+ {[%emt 0:00:36]} Ka8 {[%emt 0:00:52]} 28. Ne6 {[%emt 0:00:06]} Rd6 {[%emt 0:01:09]} 29. Nc7+ {[%emt 0:00:10]} Kb8 {[%emt 0:00:02]} 30. Ne8 {[%emt 0:00:01]} Ka8 {[%emt 0:01:46]} 31. Nxd6 {[%emt 0:00:04]} Nxd6 {[%emt 0:00:01]} 32. Re2 {[%emt 0:00:03]} Rd8 {[%emt 0:00:48]} 33. Ka1 {[%emt 0:00:18]} Ndb5 {[%emt 0:00:08]} 34. Nxb5 {[%emt 0:00:02]} Nxb5 {[%emt 0:00:09]} 35. Qe1 {[%emt 0:00:15]} Qd6 {[%emt 0:00:57]} 36. Re8 {[%emt 0:00:08]} Nxd4 {[%emt 0:00:09]} 37. Rxd8+ {[%emt 0:00:16]} Qxd8 {[%emt 0:00:01]} 38. Qe5 {[%emt 0:00:10]} Nxb3+ {[%emt 0:00:21]} 39. Kb2 {[%emt 0:00:05]} Nd2 {[%emt 0:00:01]} 40. Kc2 {[%emt 0:00:07]} Qg8 {[%emt 0:00:22]} 41. Rxd2 {[%emt 0:00:07]} Qxa2+ {[%emt 0:00:06]} 42. Kd1 {[%emt 0:00:02]} Qb3+ {[%emt 0:00:05]} 43. Ke2 {[%emt 0:00:02]} Qc4+ {[%emt 0:00:01]} 44. Kf2 {[%emt 0:00:06]} a6 {[%emt 0:00:05]} 45. Qh8+ {[%emt 0:00:06]} Ka7 {[%emt 0:00:02]} 46. Qd4+ {[%emt 0:00:01]} Qxd4+ {[%emt 0:00:01]} 47. Rxd4 {[%emt 0:00:02]} a5 {[%emt 0:00:04]} 48. Ke3 {[%emt 0:00:02]} Kb6 {[%emt 0:00:04]} 49. Rd6 {[%emt 0:00:04]} Kc5 {[%emt 0:00:13]} 50. Rxg6 {[%emt 0:00:03]} Kb4 {[%emt 0:00:04]} 51. Kd3 {[%emt 0:00:03]} a4 {[%emt 0:00:08]} 52. Kc2 {[%emt 0:00:09]} 1-0

[Event "European Online Club-ch-A 2021"]
[Site "Online"]
[Date "2021.03.27"]
[Round "2.15"]
[White "Pribyl, Viktor"]
[Black "Marin, Mihail"]
[Result "0-1"]
[ECO "B76"]
[WhiteElo "2208"]
[BlackElo "2502"]
[Annotator "ChessBase"]
[PlyCount "96"]
[EventDate "2021.03.27"]
[EventType "team-tourn"]
[EventCountry "NET"]
[SourceTitle "playchess.com"]
[Source "ChessBase"]
[SourceQuality "1"]
[TimeControl "900+5"]

1. e4 {[%emt 0:00:00]} c5 {[%emt 0:00:17]} 2. Nf3 {[%emt 0:00:03]} d6 {[%emt 0:00:01]} 3. d4 {[%emt 0:00:02]} cxd4 {[%emt 0:00:03]} 4. Nxd4 {[%emt 0:00:02]} Nf6 {[%emt 0:00:02]} 5. Nc3 {[%emt 0:00:02]} g6 {[%emt 0:00:02]} 6. Be3 {[%emt 0:00:03]} Bg7 {[%emt 0:00:01]} 7. f3 {[%emt 0:00:03]} Nc6 {[%emt 0:00:02]} 8. Qd2 {[%emt 0:00:02]} O-O {[%emt 0:00:02]} 9. O-O-O {[%emt 0:00:01]} d5 {[%emt 0:00:04]} 10. Nxc6 {[%emt 0:00:22]} bxc6 {[%emt 0:00:03]} 11. exd5 {[%emt 0:00:01]} cxd5 {[%emt 0:00:30]} 12. Nxd5 {[%emt 0:00:01]} Nxd5 {[%emt 0:00:03]} 13. Qxd5 {[%emt 0:00:02]} Qc7 {[%emt 0:00:05]} 14. Qc5 {[%emt 0:00:52]} Qb7 {[%emt 0:00:06]} 15. b3 {[%emt 0:01:31]} Bf5 {[%emt 0:00:18]} 16. Bd3 {[%emt 0:02:10]} Rfc8 {[%emt 0:02:16]} 17. Qa5 {[%emt 0:01:04]} Bc3 {[%emt 0:00:48]} 18. Qa3 {[%emt 0:00:36]} a5 {[%emt 0:01:39]} 19. Bxf5 {[%emt 0:03:13]} gxf5 {[%emt 0:00:07]} 20. Qa4 {[%emt 0:00:44]} Qb4 {[%emt 0:02:12]} 21. Rd5 {[%emt 0:03:59]} e6 {[%emt 0:02:54]} 22. Rb5 {[%emt 0:00:10]} Qxa4 {[%emt 0:00:38]} 23. bxa4 {[%emt 0:00:03]} Rc4 {[%emt 0:00:45]} 24. Rb3 {[%emt 0:01:02]} Rac8 {[%emt 0:00:11]} 25. Rd1 {[%emt 0:00:29]} Bb4 {[%emt 0:00:10]} 26. Kb1 {[%emt 0:00:24]} Rxc2 {[%emt 0:00:09]} 27. a3 {[%emt 0:00:02]} Bf8 {[%emt 0:00:09]} 28. Bd4 {[%emt 0:00:03]} Rxg2 {[%emt 0:00:12]} 29. h4 {[%emt 0:00:08]} Rd8 {[%emt 0:00:08]} 30. f4 {[%emt 0:00:10]} Bg7 {[%emt 0:00:22]} 31. Rbd3 {[%emt 0:00:05]} Rb8+ {[%emt 0:00:18]} 32. Ka1 {[%emt 0:00:03]} Bxd4+ {[%emt 0:00:05]} 33. Rxd4 {[%emt 0:00:02]} Rbb2 {[%emt 0:00:04]} 34. h5 {[%emt 0:00:07]} Kg7 {[%emt 0:00:06]} 35. Rd8 {[%emt 0:00:07]} h6 {[%emt 0:00:07]} 36. Ra8 {[%emt 0:00:05]} Ra2+ {[%emt 0:00:06]} 37. Kb1 {[%emt 0:00:01]} Rgb2+ {[%emt 0:00:03]} 38. Kc1 {[%emt 0:00:02]} Rf2 {[%emt 0:00:06]} 39. Rg1+ {[%emt 0:00:05]} Kf6 {[%emt 0:00:05]} 40. Kb1 {[%emt 0:00:07]} Rxa3 {[%emt 0:00:10]} 41. Rh8 {[%emt 0:00:07]} Rxa4 {[%emt 0:00:26]} 42. Rxh6+ {[%emt 0:00:03]} Ke7 {[%emt 0:00:04]} 43. Rh8 {[%emt 0:00:03]} Raxf4 {[%emt 0:00:26]} 44. h6 {[%emt 0:00:10]} Rf1+ {[%emt 0:00:03]} 45. Rxf1 {[%emt 0:00:01]} Rxf1+ {[%emt 0:00:02]} 46. Kb2 {[%emt 0:00:01]} Rh1 {[%emt 0:00:02]} 47. Kb3 {[%emt 0:00:09]} Rh4 {[%emt 0:00:03]} 48. Kc3 {[%emt 0:00:08]} a4 {[%emt 0:00:06]} 0-1

[Event "European Online Club-ch-A 2021"]
[Site "Online"]
[Date "2021.03.27"]
[Round "2.16"]
[White "Arkell, Keith C"]
[Black "Brozka, Karel"]
[Result "1-0"]
[ECO "A43"]
[WhiteElo "2381"]
[BlackElo "2080"]
[Annotator "NA"]
[PlyCount "63"]
[EventDate "2021.03.27"]
[EventType "team-tourn"]
[EventCountry "NET"]
[SourceTitle "playchess.com"]
[Source "ChessBase"]
[SourceQuality "1"]
[TimeControl "900+5"]

1. d4 {[%emt 0:00:00]} Nf6 {[%emt 0:00:09]} 2. Nf3 {[%emt 0:00:05]} c5 {[%emt 0:00:10]} 3. d5 {[%emt 0:00:02]} d6 {[%emt 0:00:07]} 4. Nc3 {[%emt 0:00:03]} g6 {[%emt 0:00:05]} 5. e4 {[%emt 0:00:02]} Bg7 {[%emt 0:00:02]} 6. Bb5+ {[%emt 0:00:02]} Bd7 {[%emt 0:00:35]} 7. a4 {[%emt 0:00:03]} O-O {[%emt 0:00:10]} 8. h3 {[%emt 0:00:04]} b6 {[%emt 0:00:11]} 9. O-O {[%emt 0:00:03]} a6 {[%emt 0:00:03]} 10. Bc4 {[%emt 0:00:02]} Ne8 {[%emt 0:00:19]} 11. Re1 {[%emt 0:00:07]} Nc7 {[%emt 0:00:22]} 12. e5 {[%emt 0:00:14]} dxe5 {[%emt 0:00:45]} 13. Nxe5 {[%emt 0:00:02]} Bf5 {[%emt 0:00:21]} 14. Bf4 {[%emt 0:00:13]} Bxe5 {[%emt 0:00:22]} 15. Bxe5 {[%emt 0:00:07]} Re8 {[%emt 0:00:14]} 16. g4 {[%emt 0:01:08]} Bc8 {[%emt 0:00:14]} 17. d6 {[%emt 0:04:39]} exd6 {[%emt 0:00:27]} 18. Qxd6 {[%emt 0:00:08]} Qxd6 {[%emt 0:00:41]} 19. Bxd6 {[%emt 0:00:04]} Rxe1+ {[%emt 0:00:08]} 20. Rxe1 {[%emt 0:00:04]} Ne6 {[%emt 0:00:06]} 21. Bd5 {[%emt 0:00:05]} Ra7 {[%emt 0:00:19]} 22. Bxb8 {[%emt 0:00:04]} Rd7 {[%emt 0:00:20]} 23. Bxe6 {[%emt 0:00:07]} Re7 {[%emt 0:00:08]} 24. Nd5 {[%emt 0:00:08]} Rxe6 {[%emt 0:00:06]} 25. Rxe6 {[%emt 0:01:14]} Bxe6 {[%emt 0:00:06]} 26. Nxb6 {[%emt 0:00:05]} Kf8 {[%emt 0:00:02]} 27. Bd6+ {[%emt 0:00:04]} Ke8 {[%emt 0:00:01]} 28. Bxc5 {[%emt 0:00:01]} Kd8 {[%emt 0:00:02]} 29. c4 {[%emt 0:00:07]} Kc7 {[%emt 0:00:03]} 30. b4 {[%emt 0:00:10]} Kc6 {[%emt 0:00:08]} 31. Be3 {[%emt 0:00:11]} a5 {[%emt 0:00:11]} 32. b5+ {[%emt 0:00:05]} 1-0

[Event "European Online Club-ch-A 2021"]
[Site "Online"]
[Date "2021.03.27"]
[Round "3.3"]
[White "Timofeev, Artyom"]
[Black "Ferster, Fabian"]
[Result "1-0"]
[ECO "D82"]
[WhiteElo "2594"]
[BlackElo "2149"]
[Annotator "ChessBase"]
[PlyCount "71"]
[EventDate "2021.03.27"]
[EventType "team-tourn"]
[EventCountry "NET"]
[SourceTitle "playchess.com"]
[Source "ChessBase"]
[SourceQuality "1"]
[TimeControl "900+5"]

1. d4 {[%emt 0:00:00]} Nf6 {[%emt 0:00:07]} 2. c4 {[%emt 0:00:03]} g6 {[%emt 0:00:01]} 3. Nc3 {[%emt 0:00:02]} d5 {[%emt 0:00:02]} 4. Bf4 {[%emt 0:00:03]} c5 {[%emt 0:00:05]} 5. dxc5 {[%emt 0:00:34]} d4 {[%emt 0:00:13]} 6. Nb5 {[%emt 0:00:02]} Na6 {[%emt 0:00:03]} 7. Nf3 {[%emt 0:00:25]} Bg7 {[%emt 0:00:08]} 8. Qxd4 {[%emt 0:00:08]} O-O {[%emt 0:00:13]} 9. Qxd8 {[%emt 0:00:25]} Rxd8 {[%emt 0:00:03]} 10. e3 {[%emt 0:00:03]} Nh5 {[%emt 0:00:13]} 11. Be5 {[%emt 0:00:07]} Nxc5 {[%emt 0:04:25]} 12. Be2 {[%emt 0:00:14]} Be6 {[%emt 0:00:52]} 13. Bxg7 {[%emt 0:00:09]} Kxg7 {[%emt 0:00:25]} 14. Nfd4 {[%emt 0:00:07]} Bd7 {[%emt 0:00:11]} 15. Bxh5 {[%emt 0:00:52]} gxh5 {[%emt 0:00:00]} 16. Ke2 {[%emt 0:00:04]} a6 {[%emt 0:00:17]} 17. Nc3 {[%emt 0:00:05]} Rac8 {[%emt 0:00:21]} 18. Rhd1 {[%emt 0:00:17]} e5 {[%emt 0:00:12]} 19. Nf3 {[%emt 0:00:17]} Bg4 {[%emt 0:00:02]} 20. h3 {[%emt 0:00:06]} Bxf3+ {[%emt 0:00:03]} 21. gxf3 {[%emt 0:00:06]} Ne6 {[%emt 0:00:07]} 22. Rxd8 {[%emt 0:00:04]} Nxd8 {[%emt 0:00:06]} 23. Rg1+ {[%emt 0:00:13]} Kf8 {[%emt 0:00:05]} 24. Kd3 {[%emt 0:00:03]} Ne6 {[%emt 0:00:09]} 25. b4 {[%emt 0:00:06]} f5 {[%emt 0:00:10]} 26. a4 {[%emt 0:00:15]} a5 {[%emt 0:00:09]} 27. bxa5 {[%emt 0:00:06]} Ra8 {[%emt 0:00:32]} 28. Rb1 {[%emt 0:00:27]} Rxa5 {[%emt 0:00:08]} 29. Rb5 {[%emt 0:00:03]} Rxb5 {[%emt 0:00:30]} 30. cxb5 {[%emt 0:00:03]} Ng5 {[%emt 0:00:02]} 31. a5 {[%emt 0:00:03]} Ne6 {[%emt 0:00:09]} 32. Kc4 {[%emt 0:00:06]} Ke7 {[%emt 0:00:03]} 33. a6 {[%emt 0:00:05]} bxa6 {[%emt 0:00:01]} 34. bxa6 {[%emt 0:00:01]} Kd6 {[%emt 0:00:03]} 35. a7 {[%emt 0:00:02]} Nc7 {[%emt 0:00:02]} 36. Nb5+ {[%emt 0:00:02]} 1-0

[Event "European Online Club-ch-A 2021"]
[Site "Online"]
[Date "2021.03.27"]
[Round "3.4"]
[White "Frick, Renato"]
[Black "Sharafiev, Azat"]
[Result "0-1"]
[ECO "E91"]
[WhiteElo "1947"]
[BlackElo "2432"]
[Annotator "NA"]
[PlyCount "66"]
[EventDate "2021.03.27"]
[EventType "team-tourn"]
[EventCountry "NET"]
[SourceTitle "playchess.com"]
[Source "ChessBase"]
[SourceQuality "1"]
[TimeControl "900+5"]

1. e4 {[%emt 0:00:00]} g6 {[%emt 0:00:03]} 2. d4 {[%emt 0:00:05]} Bg7 {[%emt 0:00:02]} 3. Nf3 {[%emt 0:00:04]} d6 {[%emt 0:00:02]} 4. c4 {[%emt 0:00:10]} Nf6 {[%emt 0:00:05]} 5. Nc3 {[%emt 0:00:04]} O-O {[%emt 0:00:02]} 6. Be2 {[%emt 0:00:09]} Bg4 {[%emt 0:00:02]} 7. Be3 {[%emt 0:00:20]} Nfd7 {[%emt 0:00:02]} 8. O-O {[%emt 0:00:09]} a6 {[%emt 0:00:03]} 9. Qd2 {[%emt 0:00:07]} c5 {[%emt 0:00:03]} 10. d5 {[%emt 0:00:07]} b5 {[%emt 0:00:14]} 11. cxb5 {[%emt 0:00:50]} axb5 {[%emt 0:00:02]} 12. Bh6 {[%emt 0:00:33]} b4 {[%emt 0:00:11]} 13. Bxg7 {[%emt 0:00:09]} Kxg7 {[%emt 0:00:02]} 14. Nd1 {[%emt 0:00:03]} Nf6 {[%emt 0:00:17]} 15. Qd3 {[%emt 0:00:14]} Nbd7 {[%emt 0:00:06]} 16. Nd2 {[%emt 0:00:27]} Bxe2 {[%emt 0:01:58]} 17. Qxe2 {[%emt 0:00:05]} Qc8 {[%emt 0:01:02]} 18. Nc4 {[%emt 0:00:53]} Qa6 {[%emt 0:00:09]} 19. b3 {[%emt 0:00:47]} Rfe8 {[%emt 0:00:04]} 20. Qb2 {[%emt 0:01:12]} Kg8 {[%emt 0:01:50]} 21. f3 {[%emt 0:01:06]} Qb7 {[%emt 0:00:21]} 22. Nde3 {[%emt 0:00:36]} Ra6 {[%emt 0:00:02]} 23. Rfb1 {[%emt 0:00:13]} Rea8 {[%emt 0:00:11]} 24. a4 {[%emt 0:00:03]} bxa3 {[%emt 0:00:03]} 25. Rxa3 {[%emt 0:00:01]} Rxa3 {[%emt 0:00:13]} 26. Nxa3 {[%emt 0:00:02]} Ne5 {[%emt 0:00:22]} 27. Nac4 {[%emt 0:00:35]} Nfd7 {[%emt 0:00:13]} 28. Qc3 {[%emt 0:00:20]} Ra2 {[%emt 0:00:30]} 29. Rb2 {[%emt 0:02:26]} Ra1+ {[%emt 0:00:31]} 30. Kf2 {[%emt 0:00:02]} Qa7 {[%emt 0:00:15]} 31. Nc2 {[%emt 0:03:28]} Rd1 {[%emt 0:01:30]} 32. Ne1 {[%emt 0:01:08]} Qa1 {[%emt 0:00:21]} 33. Rc2 {[%emt 0:00:20]} Rxe1 {[%emt 0:00:14]} 0-1

[Event "European Online Club-ch-A 2021"]
[Site "Online"]
[Date "2021.03.27"]
[Round "3.8"]
[White "Naiditsch, Arkadij"]
[Black "Costachi, Mihnea"]
[Result "1/2-1/2"]
[ECO "C48"]
[WhiteElo "2649"]
[BlackElo "2471"]
[Annotator "RC"]
[PlyCount "128"]
[EventDate "2021.03.27"]
[EventType "team-tourn"]
[EventCountry "NET"]
[SourceTitle "playchess.com"]
[Source "ChessBase"]
[SourceQuality "1"]
[TimeControl "900+5"]

1. e4 {[%emt 0:00:00]} e5 {[%emt 0:00:05]} 2. Nf3 {[%emt 0:00:03]} Nc6 {[%emt 0:00:40]} 3. Nc3 {[%emt 0:00:04]} Nf6 {[%emt 0:00:02]} 4. Bb5 {[%emt 0:00:02]} Nd4 {[%emt 0:00:03]} 5. O-O {[%emt 0:00:05]} Bc5 {[%emt 0:00:10]} 6. Nxe5 {[%emt 0:00:21]} O-O {[%emt 0:00:15]} 7. Nd3 {[%emt 0:01:19]} Bb6 {[%emt 0:00:41]} 8. e5 {[%emt 0:00:12]} Nxb5 {[%emt 0:00:09]} 9. Nxb5 {[%emt 0:00:09]} Nd5 {[%emt 0:00:29]} 10. c4 {[%emt 0:00:18]} a6 {[%emt 0:00:23]} 11. Nc3 {[%emt 0:01:05]} Nxc3 {[%emt 0:00:17]} 12. bxc3 {[%emt 0:00:10]} d6 {[%emt 0:00:13]} 13. Ba3 {[%emt 0:00:05]} Bf5 {[%emt 0:00:17]} 14. Nf4 {[%emt 0:01:54]} Re8 {[%emt 0:00:35]} 15. exd6 {[%emt 0:00:08]} cxd6 {[%emt 0:00:19]} 16. d4 {[%emt 0:00:37]} Rc8 {[%emt 0:00:48]} 17. Qb3 {[%emt 0:00:21]} Ba5 {[%emt 0:00:14]} 18. Rfe1 {[%emt 0:00:18]} b5 {[%emt 0:01:48]} 19. c5 {[%emt 0:01:45]} Qg5 {[%emt 0:02:02]} 20. g3 {[%emt 0:00:31]} dxc5 {[%emt 0:00:03]} 21. Bxc5 {[%emt 0:00:22]} Bc7 {[%emt 0:00:04]} 22. Nd5 {[%emt 0:01:19]} Bc2 {[%emt 0:04:09]} 23. Ne7+ {[%emt 0:02:01]} Rxe7 {[%emt 0:01:33]} 24. Bxe7 {[%emt 0:00:05]} Qf5 {[%emt 0:00:01]} 25. Qa3 {[%emt 0:00:03]} Be4 {[%emt 0:00:11]} 26. Qc5 {[%emt 0:02:48]} Qf3 {[%emt 0:00:24]} 27. Rxe4 {[%emt 0:00:07]} Qxe4 {[%emt 0:00:01]} 28. Bd6 {[%emt 0:00:40]} Qb7 {[%emt 0:00:17]} 29. Re1 {[%emt 0:00:09]} Ba5 {[%emt 0:00:37]} 30. Qa3 {[%emt 0:00:03]} Qb6 {[%emt 0:00:23]} 31. Bc5 {[%emt 0:00:13]} Qd8 {[%emt 0:00:02]} 32. Re7 {[%emt 0:00:07]} Bb6 {[%emt 0:00:20]} 33. Qb3 {[%emt 0:00:05]} Qf8 {[%emt 0:00:02]} 34. Ba3 {[%emt 0:00:07]} Ba5 {[%emt 0:00:07]} 35. Ra7 {[%emt 0:00:06]} Qe8 {[%emt 0:00:02]} 36. Re7 {[%emt 0:00:01]} Qf8 {[%emt 0:00:01]} 37. Qd5 {[%emt 0:00:06]} b4 {[%emt 0:00:09]} 38. Rb7 {[%emt 0:00:09]} bxa3 {[%emt 0:00:05]} 39. Qxa5 {[%emt 0:00:01]} Qd6 {[%emt 0:00:05]} 40. Rb3 {[%emt 0:00:07]} Qe6 {[%emt 0:00:05]} 41. Rb1 {[%emt 0:00:05]} Qxa2 {[%emt 0:00:04]} 42. Rf1 {[%emt 0:00:05]} Qb2 {[%emt 0:00:09]} 43. Qxa6 {[%emt 0:00:09]} Qxc3 {[%emt 0:00:01]} 44. d5 {[%emt 0:00:01]} Rd8 {[%emt 0:00:07]} 45. Qb6 {[%emt 0:00:11]} Ra8 {[%emt 0:00:07]} 46. Qb7 {[%emt 0:00:04]} Rd8 {[%emt 0:00:02]} 47. Qe7 {[%emt 0:00:05]} Qc8 {[%emt 0:00:07]} 48. Qxa3 {[%emt 0:00:06]} Rxd5 {[%emt 0:00:02]} 49. h4 {[%emt 0:00:01]} h5 {[%emt 0:00:02]} 50. Re1 {[%emt 0:00:02]} Rd8 {[%emt 0:00:06]} 51. Qe7 {[%emt 0:00:04]} Qd7 {[%emt 0:00:04]} 52. Qg5 {[%emt 0:00:07]} g6 {[%emt 0:00:01]} 53. Qe3 {[%emt 0:00:06]} Qf5 {[%emt 0:00:03]} 54. Kg2 {[%emt 0:00:05]} Qd5+ {[%emt 0:00:02]} 55. Qe4 {[%emt 0:00:05]} Qxe4+ {[%emt 0:00:02]} 56. Rxe4 {[%emt 0:00:00]} Kg7 {[%emt 0:00:01]} 57. Ra4 {[%emt 0:00:02]} Kf6 {[%emt 0:00:01]} 58. Ra6+ {[%emt 0:00:03]} Kg7 {[%emt 0:00:02]} 59. Ra7 {[%emt 0:00:01]} Rd3 {[%emt 0:00:02]} 60. Ra6 {[%emt 0:00:03]} Rb3 {[%emt 0:00:01]} 61. Ra7 {[%emt 0:00:02]} Rc3 {[%emt 0:00:02]} 62. Ra6 {[%emt 0:00:02]} Rb3 {[%emt 0:00:01]} 63. Ra7 {[%emt 0:00:02]} Rc3 {[%emt 0:00:01]} 64. Ra6 {[%emt 0:00:03]} Rb3 {[%emt 0:00:02]} 1/2-1/2

[Event "European Online Club-ch-A 2021"]
[Site "Online"]
[Date "2021.03.27"]
[Round "3.9"]
[White "Hera, Imre Jr."]
[Black "Finek, Vaclav"]
[Result "1-0"]
[ECO "E60"]
[WhiteElo "2610"]
[BlackElo "2361"]
[Annotator "ChessBase"]
[PlyCount "89"]
[EventDate "2021.03.27"]
[EventType "team-tourn"]
[EventCountry "NET"]
[SourceTitle "playchess.com"]
[Source "ChessBase"]
[SourceQuality "1"]
[TimeControl "900+5"]

1. Nf3 {[%emt 0:00:00]} Nf6 {[%emt 0:00:06]} 2. g3 {[%emt 0:00:03]} g6 {[%emt 0:00:02]} 3. b3 {[%emt 0:00:03]} Bg7 {[%emt 0:00:14]} 4. Bb2 {[%emt 0:00:02]} O-O {[%emt 0:00:04]} 5. Bg2 {[%emt 0:00:04]} d6 {[%emt 0:00:03]} 6. c4 {[%emt 0:00:07]} c6 {[%emt 0:00:04]} 7. O-O {[%emt 0:00:03]} Bg4 {[%emt 0:00:25]} 8. d4 {[%emt 0:00:14]} Nbd7 {[%emt 0:00:06]} 9. Nbd2 {[%emt 0:00:08]} Qc7 {[%emt 0:01:45]} 10. h3 {[%emt 0:00:46]} Bxf3 {[%emt 0:00:09]} 11. Nxf3 {[%emt 0:00:04]} Rfe8 {[%emt 0:00:07]} 12. Qc2 {[%emt 0:00:49]} Rad8 {[%emt 0:00:27]} 13. e4 {[%emt 0:01:00]} e5 {[%emt 0:00:21]} 14. Rfe1 {[%emt 0:00:15]} h6 {[%emt 0:00:30]} 15. Rad1 {[%emt 0:02:10]} Nh7 {[%emt 0:01:25]} 16. h4 {[%emt 0:00:09]} h5 {[%emt 0:01:18]} 17. b4 {[%emt 0:00:31]} a5 {[%emt 0:01:21]} 18. a3 {[%emt 0:00:11]} axb4 {[%emt 0:00:21]} 19. axb4 {[%emt 0:00:03]} Ra8 {[%emt 0:00:32]} 20. Bh3 {[%emt 0:01:12]} Ndf6 {[%emt 0:00:35]} 21. c5 {[%emt 0:00:28]} dxc5 {[%emt 0:01:15]} 22. dxc5 {[%emt 0:00:33]} Ng4 {[%emt 0:00:40]} 23. Nd2 {[%emt 0:00:06]} Nf8 {[%emt 0:00:17]} 24. Nc4 {[%emt 0:00:10]} Ne6 {[%emt 0:00:39]} 25. Bxg4 {[%emt 0:00:48]} hxg4 {[%emt 0:00:06]} 26. Qe2 {[%emt 0:00:01]} Nd4 {[%emt 0:00:27]} 27. Bxd4 {[%emt 0:00:10]} exd4 {[%emt 0:00:03]} 28. Qxg4 {[%emt 0:00:02]} Ra4 {[%emt 0:00:18]} 29. Nd6 {[%emt 0:01:38]} Re6 {[%emt 0:00:44]} 30. Rb1 {[%emt 0:01:33]} b5 {[%emt 0:00:55]} 31. f4 {[%emt 0:00:22]} d3 {[%emt 0:00:44]} 32. e5 {[%emt 0:00:12]} Ra3 {[%emt 0:00:50]} 33. Rbd1 {[%emt 0:00:39]} Rb3 {[%emt 0:00:06]} 34. h5 {[%emt 0:00:44]} Qe7 {[%emt 0:00:37]} 35. Qf3 {[%emt 0:00:14]} Qc7 {[%emt 0:00:09]} 36. Rxd3 {[%emt 0:00:03]} Rxb4 {[%emt 0:00:02]} 37. hxg6 {[%emt 0:00:08]} Rxg6 {[%emt 0:00:06]} 38. f5 {[%emt 0:00:29]} Rg5 {[%emt 0:00:02]} 39. f6 {[%emt 0:00:03]} Bf8 {[%emt 0:00:04]} 40. Re4 {[%emt 0:00:33]} Rxe4 {[%emt 0:00:13]} 41. Qxe4 {[%emt 0:00:01]} Qa7 {[%emt 0:00:02]} 42. Qe3 {[%emt 0:00:10]} Rg6 {[%emt 0:00:04]} 43. Ra3 {[%emt 0:00:18]} Qd7 {[%emt 0:00:05]} 44. Qf3 {[%emt 0:00:28]} Rg5 {[%emt 0:00:05]} 45. Re3 {[%emt 0:00:23]} 1-0

[Event "European Online Club-ch-A 2021"]
[Site "Online"]
[Date "2021.03.27"]
[Round "3.10"]
[White "Hrbek, Stepan"]
[Black "Nemeth, Miklos"]
[Result "1-0"]
[ECO "A28"]
[WhiteElo "2230"]
[BlackElo "2488"]
[Annotator "ChessBase"]
[PlyCount "61"]
[EventDate "2021.03.27"]
[EventType "team-tourn"]
[EventCountry "NET"]
[SourceTitle "playchess.com"]
[Source "ChessBase"]
[SourceQuality "1"]
[TimeControl "900+5"]

1. c4 {[%emt 0:00:00]} e5 {[%emt 0:00:08]} 2. Nc3 {[%emt 0:00:03]} Nf6 {[%emt 0:00:02]} 3. Nf3 {[%emt 0:00:03]} Nc6 {[%emt 0:00:02]} 4. e3 {[%emt 0:00:01]} Bb4 {[%emt 0:00:10]} 5. Qc2 {[%emt 0:00:02]} O-O {[%emt 0:00:36]} 6. Nd5 {[%emt 0:00:01]} Re8 {[%emt 0:02:23]} 7. Qf5 {[%emt 0:00:03]} d6 {[%emt 0:00:50]} 8. Nxf6+ {[%emt 0:00:03]} Qxf6 {[%emt 0:00:02]} 9. Qxf6 {[%emt 0:00:01]} gxf6 {[%emt 0:00:02]} 10. a3 {[%emt 0:00:01]} Ba5 {[%emt 0:00:03]} 11. b4 {[%emt 0:00:01]} Bb6 {[%emt 0:00:01]} 12. Bb2 {[%emt 0:00:24]} a5 {[%emt 0:00:05]} 13. b5 {[%emt 0:00:03]} Ne7 {[%emt 0:00:22]} 14. O-O-O {[%emt 0:00:47]} a4 {[%emt 0:00:12]} 15. d4 {[%emt 0:00:19]} c6 {[%emt 0:00:04]} 16. c5 {[%emt 0:00:57]} dxc5 {[%emt 0:00:04]} 17. dxe5 {[%emt 0:00:02]} fxe5 {[%emt 0:00:09]} 18. Nxe5 {[%emt 0:00:19]} Be6 {[%emt 0:00:21]} 19. Bc4 {[%emt 0:00:54]} Ng6 {[%emt 0:00:58]} 20. Nd7 {[%emt 0:01:55]} Bxd7 {[%emt 0:03:25]} 21. Rxd7 {[%emt 0:00:05]} Re7 {[%emt 0:00:01]} 22. Rhd1 {[%emt 0:00:23]} cxb5 {[%emt 0:00:12]} 23. Bxb5 {[%emt 0:00:02]} Kf8 {[%emt 0:01:22]} 24. Rxe7 {[%emt 0:02:09]} Nxe7 {[%emt 0:00:03]} 25. Rd7 {[%emt 0:00:02]} c4 {[%emt 0:00:20]} 26. Rxb7 {[%emt 0:00:38]} Ba5 {[%emt 0:01:14]} 27. Bd4 {[%emt 0:00:54]} Ng6 {[%emt 0:01:36]} 28. Kb2 {[%emt 0:02:39]} Rc8 {[%emt 0:00:45]} 29. Bd7 {[%emt 0:00:35]} c3+ {[%emt 0:00:49]} 30. Kc2 {[%emt 0:00:06]} Ra8 {[%emt 0:00:15]} 31. Bxa4 {[%emt 0:00:49]} 1-0